bitfinex/quotes_ETHUSD_20220309
["timestamp","ask_amount","ask_price","bid_price","bid_amount"]
[1646796540889,16.23734986,2665.1,2665.0,599.51142]
[1646796541086,16.23734986,2665.1,2665.0,521.02028939]
[1646796541087,22.85597295,2665.1,2665.0,521.02028939]
[1646796541286,24.94014986,2665.1,2665.0,494.66108939]
[1646796541486,24.93054986,2665.1,2665.0,481.59867331]
[1646796541687,24.92174986,2665.1,2665.0,481.59867331]
[1646796541989,24.92414986,2665.1,2665.0,475.96247331]
[1646796542185,24.91854986,2665.1,2665.0,473.72988654]
[1646796542388,25.9867654,2665.1,2665.0,426.95719449]
[1646796542585,25.9867654,2665.1,2665.0,411.34903721]
[1646796542586,25.0718254,2665.1,2665.0,411.34903721]
[1646796542786,24.51880986,2665.1,2665.0,393.21715643]
[1646796542988,24.50200986,2665.1,2665.0,368.05490334]
[1646796543260,24.49560986,2665.1,2665.0,362.41862334]
[1646796543460,24.50280986,2665.1,2665.0,362.41862334]
[1646796543760,24.50920986,2665.1,2665.0,356.22701174]
[1646796543959,24.50040986,2665.1,2665.0,356.22701174]
[1646796544160,25.06138168,2665.1,2665.0,350.59070174]
[1646796544359,27.88008168,2665.1,2665.0,350.59070174]
[1646796544567,27.87528168,2665.1,2665.0,350.59070174]
[1646796544760,24.86728168,2665.1,2665.0,344.95452174]
[1646796544963,22.98950986,2665.1,2665.0,344.95452174]
[1646796545163,5.64910986,2665.1,2665.0,344.95452174]
[1646796545360,5.64350986,2665.1,2665.0,344.95452174]
[1646796545560,5.65630986,2665.1,2665.0,344.95452174]
[1646796545961,5.67310986,2665.1,2665.0,344.95452174]
[1646796546163,17.27790986,2665.1,2665.0,344.95452174]
[1646796546362,17.08638728,2665.1,2665.0,344.95452174]
[1646796546561,5.65950986,2665.1,2665.0,344.95452174]
[1646796546762,5.60550986,2665.1,2665.0,344.95452174]
[1646796546995,5.39558728,2665.1,2665.0,344.95452174]
[1646796547187,17.00998728,2665.1,2665.0,344.95452174]
[1646796547383,17.02358728,2665.1,2665.0,344.95452174]
[1646796547584,5.40598728,2665.1,2665.0,344.95452174]
[1646796547784,5.39558728,2665.1,2665.0,344.95452174]
[1646796547984,5.39078728,2665.1,2665.0,344.95452174]
[1646796548286,5.38758728,2665.1,2665.0,344.95452174]
[1646796548487,0.19563244,2665.6,2665.0,344.95452174]
[1646796548488,3.244e-05,2665.6,2665.1,5.3867]
[1646796548688,3.80689983,2666.0,2665.5,3.5]
[1646796548689,0.18848258,2666.0,2665.5,3.5]
[1646796548891,0.00202763,2665.4,2665.2,3.5]
[1646796549087,2.763e-05,2665.4,2665.3,4.8187826]
[1646796549288,2.763e-05,2665.4,2665.1,5.3867]
[1646796549487,0.98947983,2666.0,2665.2,4.0]
[1646796549691,3.0095456,2666.7,2665.4,5.0]
[1646796549692,1.87759,2666.6,2665.4,5.0]
[1646796549890,0.00096,2666.6,2665.5,3.5]
[1646796550088,0.0200512,2666.7,2665.5,3.5]
[1646796550288,1.87717,2666.3,2665.5,3.5]
[1646796550931,0.5,2665.7,2665.3,3.5]
[1646796551133,1.0,2665.5,2665.3,3.5]
[1646796551334,0.5,2665.7,2665.1,3.8804]
[1646796551634,0.5,2665.7,2665.1,3.5]
[1646796552237,0.5,2665.7,2665.2,0.3804]
[1646796552436,0.9386,2666.0,2665.3,0.1875]
[1646796552637,0.9386,2666.0,2665.3,0.00614632]
[1646796552839,1.2386,2666.0,2665.4,0.1875]
[1646796553036,1.2386,2666.0,2665.3,0.00614632]
[1646796553037,2.2386,2666.0,2665.3,0.00614632]
[1646796553236,2.2386,2666.0,2665.4,0.1875]
[1646796553636,2.2386,2666.0,2665.3,0.1875]
[1646796553837,2.2386,2666.0,2665.5,0.00614579]
[1646796554036,0.455,2666.1,2665.5,0.00614579]
[1646796554240,0.45677412,2666.3,2665.5,0.00614579]
[1646796554494,1.05677412,2666.3,2665.6,0.1875]
[1646796554787,0.755,2666.3,2665.5,0.5679]
[1646796554983,1.8407149,2666.3,2665.7,0.00614548]
[1646796555183,1.87731,2666.2,2665.7,0.00614548]
[1646796555382,1.0,2665.9,2665.7,0.00614548]
[1646796555782,1.3,2665.9,2665.7,0.00614548]
[1646796555986,1.3,2665.9,2665.1,0.1875]
[1646796556185,1.3,2665.9,2665.7,0.00614018]
[1646796556587,1.43218826,2665.9,2665.7,0.00614018]
[1646796556789,2.33256,2665.8,2665.7,0.00614018]
[1646796556986,3.33256,2665.8,2665.7,0.00614018]
[1646796557190,3.51910551,2665.8,2665.0,344.95452174]
[1646796557391,3.51910551,2665.8,2665.7,0.00614018]
[1646796557586,0.455,2665.8,2665.7,0.00614018]
[1646796557785,0.00177422,2666.3,2665.7,0.00614018]
[1646796558237,0.4750512,2666.7,2665.5,0.1875]
[1646796558238,0.0200512,2666.7,2665.5,0.1875]
[1646796558438,0.0190912,2666.7,2665.5,0.1875]
[1646796558638,0.0133968,2666.6,2665.5,0.1875]
[1646796558841,0.0133968,2666.6,2665.7,0.3804]
[1646796559039,0.0133968,2666.6,2665.8,0.1875]
[1646796559238,0.0133968,2666.6,2665.8,0.5679]
[1646796559441,0.00897176,2667.1,2665.9,5.5]
[1646796559639,0.00897176,2667.1,2666.1,0.00592518]
[1646796559841,5.783e-05,2666.3,2666.2,14.20172997]
[1646796560044,5.783e-05,2666.3,2666.2,0.70609997]
[1646796560240,5.783e-05,2666.3,2666.2,0.51859997]
[1646796560441,5.783e-05,2666.3,2666.2,0.03819997]
[1646796560639,0.03383221,2667.1,2666.0,0.9379193]
[1646796560640,0.00897176,2667.1,2666.0,0.9379193]
[1646796560842,0.00897176,2667.1,2665.5,0.1875]
[1646796560843,1.10561356,2666.3,2665.5,0.1875]
[1646796561047,1.10561356,2666.3,2665.2,4.690085]
[1646796561048,1.10561356,2666.3,2665.3,0.1875]
[1646796561245,1.70561356,2666.3,2665.3,0.1875]
[1646796561443,3.5,2666.2,2665.1,0.3804]
[1646796561644,3.5,2666.2,2665.0,344.95452174]
[1646796561645,4.14154551,2666.2,2665.0,344.95452174]
[1646796561847,0.01235808,2665.1,2665.0,306.83643269]
[1646796562097,0.01235808,2665.1,2665.0,282.60565169]
[1646796562098,7.02229808,2665.1,2665.0,282.60565169]
[1646796562295,7.02229808,2665.1,2665.0,267.51575169]
[1646796562296,15.62884359,2665.1,2665.0,267.51575169]
[1646796562497,15.42994,2665.1,2665.0,267.51575169]
[1646796562696,3.75994,2665.1,2665.0,267.51575169]
[1646796563094,1.39404,2665.1,2665.0,267.51575169]
[1646796563298,2.17807,2665.2,2665.0,267.51575169]
[1646796563299,0.3,2665.2,2665.0,267.51575169]
[1646796563499,0.9388,2665.4,2665.0,267.51575169]
[1646796563703,1.0,2665.3,2665.0,267.51575169]
[1646796563901,0.455,2665.2,2665.0,267.51575169]
[1646796564702,0.455,2665.2,2665.0,267.52191679]
[1646796565602,0.455,2665.2,2665.0,267.51575169]
[1646796565836,0.755,2665.2,2665.0,267.52191679]
[1646796566037,1.0,2665.1,2665.0,267.52191679]
[1646796566838,1.0,2665.1,2665.0,267.51575169]
[1646796567440,1.5,2665.1,2665.0,267.51575169]
[1646796567743,1.955,2665.1,2665.0,267.51575169]
[1646796568142,2.1062,2665.1,2665.0,267.51575169]
[1646796568340,2.1062,2665.1,2665.0,266.37345243]
[1646796568341,2.1038,2665.1,2665.0,266.37345243]
[1646796568539,13.723,2665.1,2665.0,266.37345243]
[1646796568740,1.6464,2665.1,2665.0,265.80983814]
[1646796568944,1.5,2665.1,2665.0,265.80983814]
[1646796569243,1.90215505,2665.8,2665.2,0.3804]
[1646796569244,0.02561505,2665.8,2665.2,0.3804]
[1646796569499,0.02465505,2665.8,2665.2,0.3804]
[1646796569697,0.02465505,2665.8,2665.3,0.3804]
[1646796569698,0.01835505,2665.8,2665.3,0.3804]
[1646796569898,0.01835505,2665.8,2665.4,0.1875]
[1646796570699,0.01835505,2665.8,2665.5,0.00542629]
[1646796570900,0.00096,2666.6,2665.5,0.00542629]
[1646796571100,0.5,2665.7,2665.5,0.00542629]
[1646796571502,0.5,2665.7,2665.3,1.3188635]
[1646796571899,0.5,2665.7,2665.5,0.00520182]
[1646796572702,0.00096,2666.3,2665.3,0.9384635]
[1646796572907,0.00096,2666.5,2665.3,1.1259635]
[1646796573102,0.00177496,2666.4,2665.5,0.00573302]
[1646796573344,0.00177496,2666.4,2665.7,0.9382624]
[1646796573544,0.00177496,2666.4,2665.7,1.3186624]
[1646796573948,1.34594397,2666.6,2665.7,1.3186624]
[1646796574147,1.34594397,2666.6,2665.7,0.9382624]
[1646796574148,1.30157407,2666.6,2665.7,0.9382624]
[1646796574351,0.5,2665.8,2665.7,0.9382624]
[1646796574555,0.00177526,2666.4,2665.7,1.3186624]
[1646796574750,0.00177526,2666.4,2665.7,0.9382624]
[1646796575151,0.34437739,2666.6,2665.7,0.9382624]
[1646796575350,0.5,2665.7,2665.5,0.9383842]
[1646796575654,1.0,2666.3,2665.5,0.9383842]
[1646796575852,1.30096,2666.3,2665.5,0.9383842]
[1646796576050,0.5,2665.6,2665.5,0.9383842]
[1646796576651,0.5,2665.6,2665.2,2.814593]
[1646796576850,0.5,2665.6,2665.3,0.1875]
[1646796577588,0.3,2665.6,2665.1,5.5]
[1646796577986,0.5,2665.7,2665.1,5.5]
[1646796578190,0.8,2665.7,2665.1,5.5]
[1646796578595,0.89878592,2665.6,2665.1,5.5]
[1646796578994,0.89878592,2665.6,2665.3,0.0057554]
[1646796579394,1.1,2665.7,2665.3,0.0057554]
[1646796579597,0.8,2665.7,2665.3,0.0057554]
[1646796579995,0.8,2665.7,2665.1,5.5]
[1646796580199,0.8,2665.7,2665.4,0.0057552]
[1646796580839,0.93869,2665.6,2665.4,0.0057552]
[1646796581036,0.8,2665.7,2665.4,0.0057552]
[1646796581235,0.8,2665.7,2665.1,5.5]
[1646796581535,0.8,2665.7,2665.4,0.00575511]
[1646796581935,0.3,2665.7,2665.4,0.00575511]
[1646796582135,0.5,2665.5,2665.4,0.00575511]
[1646796582340,0.5,2665.5,2665.1,5.5]
[1646796582742,0.5,2665.5,2665.4,0.00579872]
[1646796583642,0.5,2665.5,2665.1,5.5]
[1646796583840,2.58971212,2665.8,2665.1,5.5]
[1646796583841,0.5,2665.2,2665.1,5.5]
[1646796587197,0.5,2665.2,2665.0,265.80983814]
[1646796587396,0.8,2665.2,2665.0,265.80983814]
[1646796587592,0.8,2665.2,2665.0,265.81559079]
[1646796587992,0.1416,2665.1,2665.0,265.81559079]
[1646796588250,0.1464,2665.1,2665.0,265.81559079]
[1646796588445,0.144,2665.1,2665.0,265.80983814]
[1646796588648,1.255,2665.2,2665.0,265.80983814]
[1646796589846,0.92200838,2665.6,2665.1,2.0]
[1646796590048,0.455,2665.5,2665.1,2.0]
[1646796590246,0.1576,2666.0,2665.1,2.0]
[1646796590445,0.93869,2665.6,2665.1,2.0]
[1646796590647,1.39369,2665.6,2665.1,2.0]
[1646796590848,0.5,2665.2,2665.1,2.0]
[1646796591047,0.5,2665.2,2665.0,265.80983814]
[1646796591647,1.0,2665.1,2665.0,265.80983814]
[1646796592291,1.0,2665.1,2665.0,265.81558451]
[1646796593307,1.0,2665.1,2665.0,265.80983814]
[1646796593896,2.49384,2665.2,2665.0,265.80983814]
[1646796594294,2.19384,2665.2,2665.0,265.80983814]
[1646796594495,1.255,2665.2,2665.0,265.80983814]
[1646796594694,1.255,2665.2,2665.0,265.81558411]
[1646796595750,1.255,2665.2,2665.0,265.80983814]
[1646796595751,2.19382,2665.2,2665.0,265.80983814]
[1646796595936,2.19382,2665.2,2665.0,265.81558411]
[1646796596546,0.01526978,2665.1,2665.0,265.81558411]
[1646796596941,0.01526978,2665.1,2665.0,265.80983814]
[1646796597142,0.01526978,2665.1,2665.0,265.81557983]
[1646796598042,0.01526978,2665.1,2665.0,265.80983814]
[1646796599050,1.89382,2665.2,2665.0,265.80983814]
[1646796599243,11.62,2665.1,2665.0,265.80983814]
[1646796599499,1.89382,2665.2,2665.0,265.80983814]
[1646796599500,2e-05,2665.2,2665.0,265.80983814]
[1646796600698,2e-05,2665.2,2665.0,265.81558012]
[1646796600896,0.93874,2665.5,2665.2,5.5]
[1646796601098,1.59198,2665.7,2665.4,5.5]
[1646796601301,0.00096,2666.0,2665.5,9.3804]
[1646796601497,0.00177462,2666.4,2665.5,9.3804]
[1646796601703,0.00096,2666.7,2665.5,9.3804]
[1646796601896,0.33623727,2666.8,2665.7,0.3804]
[1646796602098,7.492e-05,2666.4,2665.9,0.3804]
[1646796602296,7.492e-05,2666.4,2666.1,0.3804]
[1646796602900,0.33623727,2666.8,2666.3,5.8804]
[1646796603103,0.00897176,2667.1,2666.5,0.3804]
[1646796603343,0.00897176,2667.1,2666.4,15.12]
[1646796603344,0.08169508,2666.8,2666.7,0.3804]
[1646796603545,0.00897176,2667.1,2666.7,0.3804]
[1646796603743,0.00897176,2667.1,2666.9,0.3804]
[1646796606145,0.00897176,2667.1,2666.7,0.9379356]
[1646796606346,0.00897176,2667.1,2666.6,1.8757524]
[1646796607188,0.00897176,2667.1,2666.7,0.3804]
[1646796607388,0.00897176,2667.1,2666.7,1.3182736]
[1646796607793,0.00897176,2667.1,2666.7,0.9378736]
[1646796607991,0.00172333,2667.0,2666.6,1.8757524]
[1646796608293,0.00172333,2667.0,2666.7,0.5678]
[1646796608493,0.00172333,2667.0,2666.7,0.1874]
[1646796608795,0.00897176,2667.1,2666.7,1.1252756]
[1646796609196,0.15295716,2666.9,2666.8,0.3804]
[1646796609395,0.02192305,2667.1,2667.0,12.0004]
[1646796609396,0.01796657,2667.1,2667.0,12.0004]
[1646796609599,0.00984199,2667.4,2667.0,12.1878]
[1646796609796,0.00984199,2667.4,2667.1,0.1874]
[1646796610001,110.11271791,2667.6,2667.2,5.5]
[1646796610201,0.13459144,2667.9,2667.5,3.0]
[1646796610399,0.0581885,2668.0,2667.6,9.455]
[1646796610598,0.9919798,2668.1,2667.6,0.1874]
[1646796610850,0.05241858,2668.2,2667.5,1.8743923]
[1646796611053,0.05241858,2668.2,2667.0,3.5]
[1646796611252,0.05241858,2668.2,2667.0,4.4376664]
[1646796611253,0.5,2667.8,2667.0,4.4376664]
[1646796611454,46.85056593,2668.5,2667.5,3.0]
[1646796611455,16.98130808,2668.5,2667.5,3.0]
[1646796611658,0.01685112,2668.9,2668.4,5.5]
[1646796611860,0.01341524,2669.0,2668.8,3.0]
[1646796612060,0.02683048,2669.0,2668.9,4.5127]
[1646796612262,0.0585333,2669.3,2668.9,4.5127]
[1646796612457,0.07937134,2669.8,2669.0,3.0]
[1646796612458,0.00096,2669.8,2669.0,3.0]
[1646796612653,0.22561817,2670.5,2669.2,0.01299268]
[1646796612854,0.013681,2670.5,2669.7,0.01235397]
[1646796613053,0.17891018,2670.5,2668.8,3.61262181]
[1646796613254,0.17795018,2670.5,2669.3,0.93686]
[1646796613452,0.00096,2670.4,2669.3,0.93686]
[1646796613656,0.17795018,2670.5,2669.3,0.92986]
[1646796614053,0.96037576,2669.9,2669.3,0.92986]
[1646796614354,0.91037576,2669.9,2669.3,0.92986]
[1646796615199,1.04408171,2669.4,2669.3,0.92986]
[1646796615399,0.013681,2670.2,2669.3,0.92986]
[1646796615400,0.00081372,2669.9,2669.3,0.92986]
[1646796615601,0.0648825,2669.5,2669.3,0.92986]
[1646796615801,0.0648825,2669.5,2669.4,3.5]
[1646796616003,0.0648825,2669.5,2669.3,0.92986]
[1646796616402,0.0648825,2669.5,2668.8,3.6873]
[1646796616403,0.0648825,2669.5,2668.7,1.8744811]
[1646796616604,0.0648825,2669.5,2668.3,0.01260424]
[1646796616606,0.92006304,2669.4,2668.3,0.01260424]
[1646796616804,1.1044236,2668.8,2668.0,3.50635768]
[1646796617003,1.9205236,2668.8,2668.0,0.00635768]
[1646796617604,0.8161,2668.8,2668.3,1.8747967]
[1646796617806,0.3886,2668.9,2668.4,3.5]
[1646796618106,0.0658425,2669.5,2668.6,0.9371198]
[1646796618346,0.00909092,2668.9,2668.7,3.5]
[1646796618545,0.00909092,2668.9,2668.4,4.5]
[1646796618749,0.00909092,2668.9,2668.4,1.0]
[1646796618949,0.0658425,2669.5,2668.4,1.0]
[1646796619148,0.0648825,2669.5,2668.5,1.87419]
[1646796619348,0.01141387,2668.9,2668.5,1.87419]
[1646796619548,0.01141387,2668.9,2668.6,11.62]
[1646796619747,0.01141387,2668.9,2668.5,4.6854873]
[1646796619952,0.0648825,2669.5,2668.7,1.8739274]
[1646796620149,0.0648825,2669.5,2668.9,1.87395]
[1646796620352,0.0648825,2669.5,2668.9,2.34103163]
[1646796620353,0.0081297,2669.5,2668.9,2.34103163]
[1646796620551,0.0217492,2669.8,2669.4,0.012775]
[1646796620750,0.0113096,2669.9,2669.7,0.01236777]
[1646796620950,0.013681,2670.2,2669.7,0.01236777]
[1646796621149,0.013681,2670.2,2669.4,1.8731793]
[1646796621750,0.013681,2670.2,2669.4,3.7463593]
[1646796622191,0.013681,2670.2,2669.5,0.9365897]
[1646796622495,1.01311734,2670.0,2669.5,0.9365897]
[1646796625102,1.0,2669.3,2668.6,1.8745398]
[1646796625298,1.0,2669.3,2668.6,1.88742446]
[1646796625499,0.02287275,2669.7,2669.4,0.0012]
[1646796626343,0.013681,2670.2,2669.4,0.0012]
[1646796626544,0.013681,2670.2,2669.4,0.9381625]
[1646796626545,0.01151557,2669.8,2669.4,0.9381625]
[1646796627343,0.013681,2670.2,2669.4,0.9381625]
[1646796627749,0.01151557,2669.9,2669.4,0.9381625]
[1646796628147,3.51151557,2669.9,2669.4,0.0012]
[1646796628350,0.46751557,2669.9,2669.4,0.0012]
[1646796628546,0.455,2669.8,2669.4,0.0012]
[1646796628747,0.9134,2669.8,2669.4,0.0012]
[1646796628947,0.1496,2669.7,2669.4,0.0012]
[1646796629146,0.6022,2669.7,2669.4,0.0012]
[1646796629345,0.6086,2669.7,2669.4,0.0012]
[1646796629598,1.0,2669.8,2668.8,3.5]
[1646796629795,1.16050821,2669.6,2668.7,0.91504357]
[1646796630195,1.16050821,2669.6,2669.0,0.00635361]
[1646796630596,1.30770821,2669.6,2669.0,0.00635361]
[1646796630799,0.93889527,2669.7,2669.0,0.00635361]
[1646796630800,0.00152527,2669.7,2669.0,0.00635361]
[1646796631203,0.00152527,2669.7,2668.8,3.5]
[1646796631204,0.014641,2670.2,2668.8,1.0]
[1646796631402,0.014641,2670.2,2668.9,3.5]
[1646796631403,0.013681,2670.2,2668.9,3.5]
[1646796631599,0.00152527,2669.4,2669.0,0.00635357]
[1646796631800,0.00152527,2669.4,2669.1,0.9371747]
[1646796631999,0.00152527,2669.4,2669.0,0.00635357]
[1646796632604,0.00152527,2669.4,2669.0,3.50635357]
[1646796632804,0.00152527,2669.4,2669.0,4.44345066]
[1646796633008,0.00152527,2669.4,2669.0,0.94345066]
[1646796633652,3.514641,2670.2,2668.9,1.8742076]
[1646796633851,3.514641,2670.2,2668.5,2.45531735]
[1646796633854,0.01151558,2669.5,2668.5,2.45531735]
[1646796634251,0.86793813,2669.1,2668.5,2.45531735]
[1646796634453,1.16793813,2669.1,2668.5,2.45531735]
[1646796634655,0.3,2669.1,2668.5,2.45531735]
[1646796634854,1.39245,2669.4,2668.6,3.5]
[1646796634855,0.1408,2669.4,2668.6,3.5]
[1646796635055,0.00096,2669.6,2668.6,4.4372377]
[1646796635253,0.013681,2670.2,2668.7,0.00614284]
[1646796635254,0.03812948,2669.1,2668.7,0.00614284]
[1646796636055,1.01299087,2669.2,2668.5,2.45531735]
[1646796636456,0.0381299,2669.2,2668.8,0.00614262]
[1646796637297,1.02383362,2669.7,2668.5,2.45531735]
[1646796637298,0.45596,2669.7,2668.5,2.45531735]
[1646796637498,1.22030946,2669.2,2668.5,2.45531735]
[1646796637899,1.52030946,2669.2,2668.5,2.45531735]
[1646796638308,1.52030946,2669.2,2668.6,0.9372521]
[1646796638502,0.31151621,2669.3,2668.6,0.9372521]
[1646796638503,0.3,2669.3,2668.6,0.9372521]
[1646796638705,0.3,2669.3,2668.7,0.00591936]
[1646796638706,0.0381299,2669.1,2668.7,0.00591936]
[1646796639703,0.86757758,2669.5,2668.6,0.9372521]
[1646796639905,0.0381299,2669.2,2668.8,0.00591926]
[1646796640949,0.9189351,2669.0,2668.5,2.45531735]
[1646796641147,0.03965506,2669.3,2668.9,0.00591905]
[1646796641747,2.33021,2669.2,2668.9,0.00591905]
[1646796641946,1.0,2669.0,2668.9,0.00591905]
[1646796642147,1.455,2669.0,2668.5,2.45531735]
[1646796642346,1.9062,2669.0,2668.5,2.45531735]
[1646796642548,0.1432,2668.9,2668.5,2.45531735]
[1646796642749,1.755,2669.0,2668.5,2.45531735]
[1646796642750,0.755,2669.0,2668.5,2.45531735]
[1646796643248,0.3,2669.2,2668.5,2.45531735]
[1646796643456,0.3,2669.1,2668.5,2.45531735]
[1646796643652,0.03812877,2669.1,2668.6,0.00593474]
[1646796644049,1.09364762,2669.0,2668.6,0.00593474]
[1646796644249,0.33812877,2669.1,2668.6,0.00593474]
[1646796644492,0.4416,2669.4,2668.5,2.45531735]
[1646796644493,0.3,2669.4,2668.5,2.45531735]
[1646796644693,0.455,2669.4,2668.5,2.45531735]
[1646796644900,0.455,2669.4,2668.7,0.00593454]
[1646796644901,0.0381299,2669.1,2668.7,0.00593454]
[1646796645300,0.0381299,2669.1,2667.4,0.03819997]
[1646796645301,5.5,2669.0,2667.4,0.03819997]
[1646796645496,5.5,2669.0,2667.3,0.980087]
[1646796645497,0.01245352,2668.5,2667.5,1.53489442]
[1646796645697,0.455,2668.5,2667.6,5.03489442]
[1646796645899,0.755,2668.5,2667.7,1.5348409]
[1646796646102,0.455,2668.5,2667.8,3.5]
[1646796646302,0.455,2668.5,2667.5,5.3750885]
[1646796646502,0.455,2668.5,2667.5,1.8750885]
[1646796646700,0.755,2668.5,2667.5,1.8750885]
[1646796646900,0.755,2668.5,2667.3,0.9377434]
[1646796647103,0.1432,2668.4,2667.3,0.9377434]
[1646796647301,0.1432,2668.4,2667.0,3.5]
[1646796647302,0.455,2668.3,2667.0,3.5]
[1646796647500,0.148,2668.4,2667.1,1.91543183]
[1646796647501,0.1608,2668.4,2667.1,1.91543183]
[1646796647702,0.00096,2668.5,2667.3,12.55756]
[1646796647904,6.1484,2669.1,2667.4,5.03503183]
[1646796647905,0.00096,2668.7,2667.4,5.03503183]
[1646796648102,6.6034,2669.1,2667.5,1.53503183]
[1646796648103,0.00096,2668.8,2667.5,1.53503183]
[1646796648369,0.15696,2669.0,2667.6,3.5]
[1646796648570,2.16253965,2668.7,2667.7,1.53503183]
[1646796648971,0.93767,2668.7,2667.8,1.53480182]
[1646796649173,0.00096,2668.7,2667.9,1.53480182]
[1646796649373,0.00096,2669.0,2668.0,3.5]
[1646796649572,0.144,2669.3,2668.0,3.5]
[1646796649573,1.3512,2669.9,2669.5,1.63578747]
[1646796649775,0.013681,2670.2,2669.5,3.04648747]
[1646796649975,0.013681,2670.2,2669.6,3.5]
[1646796650173,0.013681,2670.2,2669.7,0.3804]
[1646796650174,0.02308915,2669.8,2669.7,0.3804]
[1646796650372,0.02308915,2669.8,2669.5,2.46638747]
[1646796650573,0.02308915,2669.8,2669.5,1.63578747]
[1646796651777,0.02308915,2669.8,2669.6,3.5]
[1646796651992,0.02308915,2669.8,2669.6,0.9369223]
[1646796652396,0.02308915,2669.8,2669.5,1.63578747]
[1646796653598,0.02267387,2670.2,2669.5,1.63578747]
[1646796653802,0.0118339,2669.9,2669.5,2.57270897]
[1646796654004,0.0118339,2669.9,2669.5,1.63578747]
[1646796654602,0.0118339,2669.9,2669.6,1.53404594]
[1646796654807,0.00131136,2669.8,2669.7,1.91439895]
[1646796655006,0.00131136,2669.8,2669.7,5.41439895]
[1646796655204,0.03278237,2669.9,2669.8,4.3804]
[1646796655402,0.03278237,2669.9,2669.8,9.41439895]
[1646796655602,0.03278237,2669.9,2669.8,5.91439895]
[1646796656264,0.03278237,2669.9,2669.8,9.41439895]
[1646796656465,0.03278237,2669.9,2669.5,1.63578747]
[1646796656668,0.03278237,2670.0,2669.5,1.63578747]
[1646796657865,0.03278237,2670.0,2669.7,0.06239701]
[1646796658064,0.013681,2670.2,2669.7,0.06239701]
[1646796658872,0.92427094,2670.1,2669.7,0.06239701]
[1646796659274,1.22427094,2670.1,2669.7,0.06239701]
[1646796660094,0.00125059,2670.1,2669.7,0.06239701]
[1646796660295,0.00125059,2670.1,2669.7,0.44279701]
[1646796660498,0.00125059,2670.1,2669.9,0.3804]
[1646796660700,0.00125059,2670.1,2670.0,0.3804]
[1646796660902,0.04494423,2670.2,2669.7,0.06239701]
[1646796661104,0.013681,2670.2,2669.7,0.06239701]
[1646796661503,0.013681,2670.2,2669.9,0.3804]
[1646796661700,0.013681,2670.2,2669.8,0.936757]
[1646796661701,0.00125059,2670.0,2669.8,0.936757]
[1646796661903,0.00125059,2670.0,2669.9,0.3804]
[1646796662701,0.00125059,2670.0,2669.8,0.936757]
[1646796663102,0.00125059,2670.0,2669.7,0.06239701]
[1646796663351,0.455,2669.9,2669.5,1.63578747]
[1646796663750,0.755,2669.9,2669.5,1.63578747]
[1646796663949,0.87356941,2669.8,2669.5,1.63578747]
[1646796664752,0.00125059,2670.1,2669.5,1.63578747]
[1646796665752,1.05053993,2669.9,2669.5,1.63578747]
[1646796666153,1.35053993,2669.9,2669.5,1.63578747]
[1646796667013,2.75431277,2669.9,2669.5,1.63578747]
[1646796667207,2.90151277,2669.9,2669.5,1.63578747]
[1646796667403,2.89751277,2669.9,2669.5,1.63578747]
[1646796667604,2.75431277,2669.9,2669.5,1.63578747]
[1646796667805,1.81709277,2669.9,2669.5,1.63578747]
[1646796668606,0.01271231,2669.9,2669.5,1.63578747]
[1646796669005,0.01271231,2669.9,2669.7,0.05673349]
[1646796671057,0.00115947,2669.9,2669.7,0.05673349]
[1646796671954,0.00115947,2669.8,2669.7,0.05673349]
[1646796673455,0.00115947,2669.8,2669.6,4.39366889]
[1646796673656,0.00115947,2669.8,2669.6,0.89366889]
[1646796673855,0.00115947,2669.8,2669.7,0.05381066]
[1646796675110,0.00127018,2669.9,2669.7,0.05381066]
[1646796675312,1.14081522,2669.8,2669.7,0.05381066]
[1646796675812,1.44081522,2669.8,2669.7,0.05381066]
[1646796676411,1.44175508,2669.8,2669.7,0.05381066]
[1646796676814,1.89675508,2669.8,2669.7,1.066e-05]
[1646796677012,2.03995508,2669.8,2669.7,1.066e-05]
[1646796677212,2.04235508,2669.8,2669.7,1.066e-05]
[1646796677614,2.04875508,2669.8,2669.7,1.066e-05]
[1646796677814,3.03835508,2669.8,2669.7,1.066e-05]
[1646796678114,1.75593986,2669.8,2669.7,1.066e-05]
[1646796678348,1.00093986,2669.8,2669.7,1.066e-05]
[1646796678750,0.00093986,2669.8,2669.7,1.066e-05]
[1646796678950,0.00093986,2669.8,2669.7,0.05136299]
[1646796679553,0.00093986,2669.9,2669.7,0.05136299]
[1646796679752,0.00093986,2669.9,2669.7,1.34226299]
[1646796679953,6.478e-05,2670.2,2669.9,3.0]
[1646796680250,6.478e-05,2670.2,2670.0,0.3804]
[1646796680453,6.478e-05,2670.2,2670.0,0.01938489]
[1646796680852,0.02064651,2670.7,2670.0,0.01938489]
[1646796681651,1.0,2670.9,2670.0,0.01938489]
[1646796681851,0.97064651,2670.9,2670.0,0.01938489]
[1646796682098,1.98497922,2670.9,2670.0,0.01938489]
[1646796682298,1.01433271,2670.9,2670.0,0.01938489]
[1646796682504,1.31433271,2670.9,2670.0,0.01938489]
[1646796682699,4.31433271,2670.9,2670.0,0.01938489]
[1646796682902,12.56983507,2670.7,2670.0,0.01938489]
[1646796683100,0.755,2670.6,2670.0,0.01938489]
[1646796683503,0.455,2670.6,2669.8,0.01938489]
[1646796683807,0.884104,2670.2,2669.8,0.01938489]
[1646796684104,1.184104,2670.2,2669.8,0.01938489]
[1646796686244,1.639104,2670.2,2669.8,0.01938489]
[1646796686646,1.639104,2670.2,2669.6,0.01938489]
[1646796687050,1.05525283,2669.7,2669.6,0.01938489]
[1646796687251,4.5,2669.6,2669.5,1.63578747]
[1646796687451,4.955,2669.6,2669.5,1.63578747]
[1646796687853,0.455,2669.6,2669.5,1.63578747]
[1646796688050,0.3,2669.7,2669.5,1.63578747]
[1646796688250,5.5,2670.0,2668.6,1.8742891]
[1646796688452,3.3,2669.7,2668.2,1.1259]
[1646796688654,0.455,2669.6,2668.0,3.5]
[1646796688853,0.60316,2669.6,2668.1,1.53454711]
[1646796689050,1.20167143,2669.0,2668.1,1.53454711]
[1646796689510,0.3,2669.0,2668.2,3.5]
[1646796689699,0.455,2669.3,2667.9,0.21093376]
[1646796689700,0.3,2669.3,2667.9,0.21093376]
[1646796689904,0.93755,2669.0,2667.5,0.03819997]